[Event "FIDE World Cup G12-A 2024"]
[Site "Batumi"]
[Date "2024.06.26"]
[Round "4.6"]
[White "Diaskyzy, Daliya"]
[Black "Mamakova, Aknur"]
[Result "1-0"]
[ECO "B11"]
[WhiteElo "1793"]
[BlackElo "1648"]
[Annotator "NA RC"]
[PlyCount "103"]
[EventDate "2024.06.23"]
[EventType "swiss"]
[EventCountry "GEO"]
[SourceTitle "playchess.com"]
[Source "ChessBase"]
[SourceQuality "1"]
[TimeControl "5400+30"]

1. e4 {[%emt 0:00:02]} c6 {[%emt 0:00:05]} 2. Nf3 {[%emt 0:00:19]} d5 {[%emt 0:00:08]} 3. Nc3 {[%emt 0:00:10]} Bg4 {[%emt 0:00:20]} 4. h3 {[%emt 0:00:05]} Bxf3 {[%emt 0:00:16]} 5. Qxf3 {[%emt 0:00:05]} e6 {[%emt 0:00:10]} 6. d4 {[%emt 0:00:02]} Nf6 {[%emt 0:00:47]} 7. Be2 {[%emt 0:01:54]} dxe4 {[%emt 0:04:01]} 8. Qe3 {[%emt 0:03:10]} Bb4 {[%emt 0:02:24]} 9. O-O {[%emt 0:05:27]} Nd5 {[%emt 0:07:12]} 10. Qg3 {[%emt 0:03:24]} Nxc3 {[%emt 0:18:08]} 11. bxc3 {[%emt 0:00:15]} Bf8 {[%emt 0:00:44]} 12. Rb1 {[%emt 0:05:10]} Qc8 {[%emt 0:02:24]} 13. Qe5 {[%emt 0:05:14]} Nd7 {[%emt 0:01:15]} 14. Qxe4 {[%emt 0:01:56]} Nf6 {[%emt 0:03:23]} 15. Qe5 {[%emt 0:05:24]} Qd7 {[%emt 0:06:15]} 16. Qg3 {[%emt 0:15:24]} Ne4 {[%emt 0:08:09]} 17. Qd3 {[%emt 0:01:37]} Nf6 {[%emt 0:03:00]} 18. Bf4 {[%emt 0:10:00]} Be7 {[%emt 0:02:52]} 19. Qg3 {[%emt 0:01:25]} O-O {[%emt 0:04:35]} 20. Be5 {[%emt 0:03:48]} Ne8 {[%emt 0:02:19]} 21. Bc4 {[%emt 0:01:40]} Bd6 {[%emt 0:03:40]} 22. f4 {[%emt 0:01:10]} b5 {[%emt 0:04:14]} 23. Bb3 {[%emt 0:04:17]} Bxe5 {[%emt 0:01:33]} 24. dxe5 {[%emt 0:03:53]} g6 {[%emt 0:02:05]} 25. Rbd1 {[%emt 0:03:54]} Qc8 {[%emt 0:03:24]} 26. c4 {[%emt 0:00:48]} Ng7 {[%emt 0:01:16]} 27. Qf3 {[%emt 0:04:37]} a5 {[%emt 0:01:32]} 28. a4 {[%emt 0:00:34]} b4 {[%emt 0:04:41]} 29. c5 {[%emt 0:00:23]} Nf5 {[%emt 0:01:14]} 30. g4 {[%emt 0:04:45]} Ne7 {[%emt 0:00:11]} 31. Kh1 {[%emt 0:01:58]} Kh8 {[%emt 0:03:24]} 32. Rd6 {[%emt 0:00:55]} Qc7 {[%emt 0:00:47]} 33. Qg3 {[%emt 0:04:58]} Qa7 {[%emt 0:02:04]} 34. Qh4 {[%emt 0:01:35]} Qa6 {[%emt 0:01:43]} 35. Re1 {[%emt 0:01:03]} Qa7 {[%emt 0:00:52]} 36. Qf6+ {[%emt 0:00:19]} Kg8 {[%emt 0:00:06]} 37. f5 {[%emt 0:00:35]} exf5 {[%emt 0:04:30]} 38. e6 {[%emt 0:00:32]} Nd5 {[%emt 0:00:14]} 39. Bxd5 {[%emt 0:00:47]} cxd5 {[%emt 0:00:14]} 40. e7 {[%emt 0:00:03]} Rfe8 {[%emt 0:00:17]} 41. Rd8 {[%emt 0:00:24]} Qb7 {[%emt 0:01:32]} 42. gxf5 {[%emt 0:00:49]} d4+ {[%emt 0:00:34]} 43. c6 {[%emt 0:00:04]} Qa6 {[%emt 0:00:29]} 44. Rxa8 {[%emt 0:00:09]} Qxa8 {[%emt 0:00:06]} 45. fxg6 {[%emt 0:00:04]} hxg6 {[%emt 0:00:19]} 46. Rf1 {[%emt 0:00:05]} Kh7 {[%emt 0:00:56]} 47. Qxf7+ {[%emt 0:00:14]} Kh6 {[%emt 0:00:13]} 48. Rf6 {[%emt 0:00:46]} Rg8 {[%emt 0:00:22]} 49. Qf8+ {[%emt 0:00:18]} Kh5 {[%emt 0:00:19]} 50. Qxa8 {[%emt 0:00:05]} Rxa8 {[%emt 0:00:03]} 51. Rf8 {[%emt 0:00:05]} d3 {[%emt 0:00:13]} 52. cxd3 {[%emt 0:00:15]} 1-0

[Event "FIDE World Cup G12-A 2024"]
[Site "Batumi"]
[Date "2024.06.26"]
[Round "4.7"]
[White "Wang, April"]
[Black "Sevastsyanchuk, Anastasiya"]
[Result "0-1"]
[ECO "E12"]
[WhiteElo "1622"]
[BlackElo "1531"]
[Annotator "NA RC"]
[PlyCount "124"]
[EventDate "2024.06.23"]
[EventType "swiss"]
[EventCountry "GEO"]
[SourceTitle "playchess.com"]
[Source "ChessBase"]
[SourceQuality "1"]
[TimeControl "5400+30"]

1. d4 {[%emt 0:00:49]} Nf6 {[%emt 0:00:06]} 2. c4 {[%emt 0:00:10]} e6 {[%emt 0:00:07]} 3. Nf3 {[%emt 0:00:29]} b6 {[%emt 0:00:06]} 4. Nc3 {[%emt 0:00:34]} Bb7 {[%emt 0:00:07]} 5. a3 {[%emt 0:01:25]} d5 {[%emt 0:01:04]} 6. cxd5 {[%emt 0:02:25]} Nxd5 {[%emt 0:02:22]} 7. Bg5 {[%emt 0:03:21]} Be7 {[%emt 0:01:18]} 8. Bxe7 {[%emt 0:01:51]} Qxe7 {[%emt 0:00:42]} 9. g3 {[%emt 0:03:23]} Nxc3 {[%emt 0:04:17]} 10. bxc3 {[%emt 0:00:17]} e5 {[%emt 0:01:34]} 11. e3 {[%emt 0:04:04]} Nd7 {[%emt 0:16:19]} 12. Bg2 {[%emt 0:06:29]} e4 {[%emt 0:11:14]} 13. Nd2 {[%emt 0:03:34]} O-O {[%emt 0:01:33]} 14. Qc2 {[%emt 0:01:47]} Rae8 {[%emt 0:03:02]} 15. O-O {[%emt 0:01:52]} Ba6 {[%emt 0:00:14]} 16. Rfc1 {[%emt 0:02:18]} Bd3 {[%emt 0:00:04]} 17. Qb3 {[%emt 0:01:19]} b5 {[%emt 0:07:36]} 18. Bf1 {[%emt 0:03:11]} Bxf1 {[%emt 0:02:56]} 19. Kxf1 {[%emt 0:01:02]} Rb8 {[%emt 0:00:44]} 20. Qb4 {[%emt 0:02:08]} c5 {[%emt 0:00:43]} 21. dxc5 {[%emt 0:09:01]} Nxc5 {[%emt 0:00:09]} 22. Nxe4 {[%emt 0:02:14]} Qxe4 {[%emt 0:00:19]} 23. Qxc5 {[%emt 0:00:36]} Qh1+ {[%emt 0:00:41]} 24. Ke2 {[%emt 0:00:14]} Qxh2 {[%emt 0:00:09]} 25. Rh1 {[%emt 0:01:53]} Qg2 {[%emt 0:00:08]} 26. Qxa7 {[%emt 0:00:48]} Rfd8 {[%emt 0:00:30]} 27. Qc7 {[%emt 0:06:05]} Qe4 {[%emt 0:02:49]} 28. Rhd1 {[%emt 0:02:15]} Rdc8 {[%emt 0:00:23]} 29. Qd6 {[%emt 0:05:08]} Qc2+ {[%emt 0:01:53]} 30. Rd2 {[%emt 0:11:38]} Qxc3 {[%emt 0:00:13]} 31. Rad1 {[%emt 0:01:14]} h6 {[%emt 0:01:08]} 32. Qe7 {[%emt 0:03:44]} Qc4+ {[%emt 0:02:41]} 33. Ke1 {[%emt 0:03:06]} Re8 {[%emt 0:00:14]} 34. Rd8 {[%emt 0:05:51]} Rbxd8 {[%emt 0:00:11]} 35. Rxd8 {[%emt 0:11:45]} Rxd8 {[%emt 0:02:34]} 36. Qxd8+ {[%emt 0:00:00]} Kh7 {[%emt 0:00:01]} 37. Qd2 {[%emt 0:00:00]} Kg6 {[%emt 0:01:03]} 38. Kd1 {[%emt 0:00:00]} Qf1+ {[%emt 0:02:09]} 39. Kc2 {[%emt 0:00:00]} Qc4+ {[%emt 0:02:20]} 40. Qc3 {[%emt 0:00:00]} Qa2+ {[%emt 0:01:44]} 41. Qb2 {[%emt 0:00:00]} Qd5 {[%emt 0:00:23]} 42. Qb3 {[%emt 0:02:02]} Qf3 {[%emt 0:01:00]} 43. Qd3+ {[%emt 0:00:52]} Qf5 {[%emt 0:02:02]} 44. Qxf5+ {[%emt 0:00:23]} Kxf5 {[%emt 0:00:06]} 45. Kb3 {[%emt 0:00:11]} g5 {[%emt 0:00:09]} 46. Kc3 {[%emt 0:01:15]} h5 {[%emt 0:00:05]} 47. Kd3 {[%emt 0:00:12]} Kg4 {[%emt 0:00:23]} 48. Ke2 {[%emt 0:00:26]} f5 {[%emt 0:00:26]} 49. f3+ {[%emt 0:00:57]} Kxg3 {[%emt 0:00:05]} 50. e4 {[%emt 0:00:07]} fxe4 {[%emt 0:00:03]} 51. fxe4 {[%emt 0:00:05]} Kf4 {[%emt 0:00:03]} 52. Kd3 {[%emt 0:00:28]} h4 {[%emt 0:00:10]} 53. Kd4 {[%emt 0:01:17]} h3 {[%emt 0:00:07]} 54. e5 {[%emt 0:00:20]} h2 {[%emt 0:00:04]} 55. e6 {[%emt 0:00:08]} h1=Q {[%emt 0:00:07]} 56. Kc5 {[%emt 0:00:27]} Qh5 {[%emt 0:00:16]} 57. Kxb5 {[%emt 0:00:52]} Qe8+ {[%emt 0:00:07]} 58. Kb4 {[%emt 0:00:13]} Qxe6 {[%emt 0:00:03]} 59. a4 {[%emt 0:00:04]} Qa6 {[%emt 0:00:04]} 60. a5 {[%emt 0:00:15]} g4 {[%emt 0:00:04]} 61. Ka4 {[%emt 0:00:10]} g3 {[%emt 0:00:06]} 62. Kb3 {[%emt 0:00:16]} g2 {[%emt 0:38:10]} 0-1

[Event "FIDE World Cup G12-A 2024"]
[Site "Batumi"]
[Date "2024.06.26"]
[Round "4.8"]
[White "Wu, Yiting"]
[Black "Zavivaeva, Angelina"]
[Result "1-0"]
[ECO "B19"]
[WhiteElo "1758"]
[BlackElo "1489"]
[Annotator "NA RC"]
[PlyCount "117"]
[EventDate "2024.06.23"]
[EventType "swiss"]
[EventCountry "GEO"]
[SourceTitle "playchess.com"]
[Source "ChessBase"]
[SourceQuality "1"]
[TimeControl "5400+30"]

1. e4 {[%emt 0:00:01]} c6 {[%emt 0:00:05]} 2. d4 {[%emt 0:00:07]} d5 {[%emt 0:00:04]} 3. Nc3 {[%emt 0:00:09]} dxe4 {[%emt 0:00:04]} 4. Nxe4 {[%emt 0:00:08]} Bf5 {[%emt 0:00:01]} 5. Ng3 {[%emt 0:00:11]} Bg6 {[%emt 0:00:03]} 6. h4 {[%emt 0:00:10]} h6 {[%emt 0:00:04]} 7. Nf3 {[%emt 0:00:09]} Nd7 {[%emt 0:00:05]} 8. h5 {[%emt 0:00:07]} Bh7 {[%emt 0:00:05]} 9. Bd3 {[%emt 0:00:05]} Bxd3 {[%emt 0:00:05]} 10. Qxd3 {[%emt 0:00:06]} Ngf6 {[%emt 0:00:03]} 11. Bd2 {[%emt 0:00:34]} e6 {[%emt 0:00:06]} 12. O-O-O {[%emt 0:00:19]} Bd6 {[%emt 0:00:04]} 13. Ne4 {[%emt 0:02:12]} Nxe4 {[%emt 0:00:06]} 14. Qxe4 {[%emt 0:00:04]} Nf6 {[%emt 0:00:05]} 15. Qe2 {[%emt 0:01:02]} Qe7 {[%emt 0:00:04]} 16. Ne5 {[%emt 0:07:28]} O-O-O {[%emt 0:00:24]} 17. c4 {[%emt 0:12:03]} Rhe8 {[%emt 0:05:50]} 18. f4 {[%emt 0:05:08]} Nd7 {[%emt 0:06:41]} 19. Rhf1 {[%emt 0:06:57]} Nxe5 {[%emt 0:06:37]} 20. fxe5 {[%emt 0:01:06]} Bc7 {[%emt 0:00:16]} 21. Bc3 {[%emt 0:06:19]} Rd7 {[%emt 0:03:29]} 22. c5 {[%emt 0:05:55]} Red8 {[%emt 0:02:39]} 23. Qg4 {[%emt 0:03:56]} Qg5+ {[%emt 0:03:57]} 24. Qxg5 {[%emt 0:01:06]} hxg5 {[%emt 0:00:02]} 25. Kc2 {[%emt 0:05:10]} a5 {[%emt 0:06:51]} 26. Rd2 {[%emt 0:14:02]} b6 {[%emt 0:04:37]} 27. Rdf2 {[%emt 0:02:01]} Rf8 {[%emt 0:09:12]} 28. a3 {[%emt 0:03:30]} bxc5 {[%emt 0:04:21]} 29. dxc5 {[%emt 0:00:07]} a4 {[%emt 0:04:44]} 30. b3 {[%emt 0:03:58]} axb3+ {[%emt 0:05:02]} 31. Kxb3 {[%emt 0:00:02]} Kd8 {[%emt 0:00:42]} 32. Kc4 {[%emt 0:01:17]} Ke7 {[%emt 0:00:23]} 33. a4 {[%emt 0:02:32]} Bb8 {[%emt 0:01:48]} 34. a5 {[%emt 0:01:34]} Ra7 {[%emt 0:00:07]} 35. Ra1 {[%emt 0:02:21]} Ra6 {[%emt 0:01:43]} 36. Rd2 {[%emt 0:01:06]} Bc7 {[%emt 0:02:28]} 37. Rb2 {[%emt 0:02:39]} Rd8 {[%emt 0:03:35]} 38. Re2 {[%emt 0:03:36]} Rh8 {[%emt 0:08:58]} 39. g4 {[%emt 0:00:44]} Rd8 {[%emt 0:00:39]} 40. Rb1 {[%emt 0:03:59]} Ra7 {[%emt 0:08:05]} 41. Reb2 {[%emt 0:01:22]} Kd7 {[%emt 0:03:08]} 42. Rd2+ {[%emt 0:01:12]} Kc8 {[%emt 0:00:18]} 43. Rf2 {[%emt 0:00:59]} Rd7 {[%emt 0:14:20]} 44. Rbf1 {[%emt 0:01:41]} Bd8 {[%emt 0:00:00]} 45. Ra1 {[%emt 0:01:05]} Kb7 {[%emt 0:00:00]} 46. Rb2+ {[%emt 0:00:13]} Kc8 {[%emt 0:00:00]} 47. a6 {[%emt 0:00:22]} Ra8 {[%emt 0:00:00]} 48. Rb6 {[%emt 0:02:02]} Rda7 {[%emt 0:00:58]} 49. Rxc6+ {[%emt 0:00:24]} Bc7 {[%emt 0:00:44]} 50. Ba5 {[%emt 0:00:38]} Kd7 {[%emt 0:01:04]} 51. Rxc7+ {[%emt 0:00:17]} Rxc7 {[%emt 0:00:11]} 52. Bxc7 {[%emt 0:00:02]} Kxc7 {[%emt 0:00:05]} 53. a7 {[%emt 0:00:27]} Kc6 {[%emt 0:01:14]} 54. Ra6+ {[%emt 0:00:30]} Kb7 {[%emt 0:00:35]} 55. Kb5 {[%emt 0:00:11]} Kc7 {[%emt 0:00:36]} 56. c6 {[%emt 0:00:30]} Kd8 {[%emt 0:00:16]} 57. Kb6 {[%emt 0:00:12]} Kc8 {[%emt 0:00:17]} 58. Ra1 {[%emt 0:00:26]} Kd8 {[%emt 0:00:43]} 59. Kb7 {[%emt 0:00:09]} 1-0

[Event "FIDE World Cup G12-A 2024"]
[Site "Batumi"]
[Date "2024.06.26"]
[Round "4.9"]
[White "Kutateladze, Anastasia"]
[Black "Potikha, Shelley"]
[Result "1-0"]
[ECO "C10"]
[WhiteElo "1598"]
[BlackElo "1464"]
[Annotator "NA RC"]
[PlyCount "47"]
[EventDate "2024.06.23"]
[EventType "swiss"]
[EventCountry "GEO"]
[SourceTitle "playchess.com"]
[Source "ChessBase"]
[SourceQuality "1"]
[TimeControl "5400+30"]

1. e4 {[%emt 0:00:01]} e6 {[%emt 0:00:01]} 2. d4 {[%emt 0:00:05]} d5 {[%emt 0:00:03]} 3. Nc3 {[%emt 0:00:04]} h6 {[%emt 0:00:16]} 4. e5 {[%emt 0:04:01]} c5 {[%emt 0:00:29]} 5. f4 {[%emt 0:03:07]} cxd4 {[%emt 0:04:27]} 6. Qxd4 {[%emt 0:00:06]} Nc6 {[%emt 0:00:13]} 7. Bb5 {[%emt 0:07:02]} Bd7 {[%emt 0:06:24]} 8. Bxc6 {[%emt 0:03:09]} bxc6 {[%emt 0:00:34]} 9. Nf3 {[%emt 0:01:09]} c5 {[%emt 0:01:05]} 10. Qd3 {[%emt 0:01:23]} Qb6 {[%emt 0:07:36]} 11. a4 {[%emt 0:05:18]} a5 {[%emt 0:03:58]} 12. Qe2 {[%emt 0:19:28]} c4 {[%emt 0:02:44]} 13. f5 {[%emt 0:02:53]} Bb4 {[%emt 0:09:39]} 14. Be3 {[%emt 0:05:30]} Bxc3+ {[%emt 0:02:31]} 15. bxc3 {[%emt 0:00:02]} Qb2 {[%emt 0:01:17]} 16. O-O {[%emt 0:00:07]} Qxc3 {[%emt 0:05:17]} 17. fxe6 {[%emt 0:02:34]} fxe6 {[%emt 0:06:01]} 18. Bd4 {[%emt 0:05:42]} Qb4 {[%emt 0:03:22]} 19. c3 {[%emt 0:01:21]} Qe7 {[%emt 0:04:59]} 20. Qc2 {[%emt 0:02:54]} Qf7 {[%emt 0:07:26]} 21. Nh4 {[%emt 0:03:56]} Qh5 {[%emt 0:02:36]} 22. Qg6+ {[%emt 0:04:55]} Qxg6 {[%emt 0:00:15]} 23. Nxg6 {[%emt 0:00:05]} Ne7 {[%emt 0:03:19]} 24. Nxh8 {[%emt 0:00:29]} 1-0

[Event "FIDE World Cup G12-A 2024"]
[Site "Batumi"]
[Date "2024.06.26"]
[Round "4.10"]
[White "Gulishyan, Eseniya"]
[Black "Kedelidze, Aneta"]
[Result "0-1"]
[ECO "A58"]
[WhiteElo "1434"]
[BlackElo "1544"]
[Annotator "NA RC"]
[PlyCount "62"]
[EventDate "2024.06.23"]
[EventType "swiss"]
[EventCountry "GEO"]
[SourceTitle "playchess.com"]
[Source "ChessBase"]
[SourceQuality "1"]
[TimeControl "5400+30"]

1. d4 {[%emt 0:00:08]} Nf6 {[%emt 0:00:32]} 2. c4 {[%emt 0:00:08]} g6 {[%emt 0:00:11]} 3. g3 {[%emt 0:00:11]} Bg7 {[%emt 0:00:20]} 4. Bg2 {[%emt 0:00:24]} d6 {[%emt 0:00:13]} 5. Nf3 {[%emt 0:00:08]} O-O {[%emt 0:00:16]} 6. O-O {[%emt 0:00:03]} c5 {[%emt 0:00:21]} 7. d5 {[%emt 0:02:25]} a6 {[%emt 0:00:20]} 8. Nc3 {[%emt 0:02:08]} b5 {[%emt 0:07:43]} 9. cxb5 {[%emt 0:06:53]} axb5 {[%emt 0:00:14]} 10. Nxb5 {[%emt 0:00:13]} Ba6 {[%emt 0:01:23]} 11. Nc3 {[%emt 0:00:13]} Nbd7 {[%emt 0:01:18]} 12. Re1 {[%emt 0:02:13]} Nb6 {[%emt 0:01:48]} 13. e4 {[%emt 0:01:53]} Nfd7 {[%emt 0:05:30]} 14. Qc2 {[%emt 0:05:54]} Nc4 {[%emt 0:03:31]} 15. Bf4 {[%emt 0:03:47]} Qa5 {[%emt 0:01:49]} 16. Bd2 {[%emt 0:25:37]} Rfb8 {[%emt 0:04:22]} 17. Reb1 {[%emt 0:06:10]} Nde5 {[%emt 0:03:01]} 18. Nxe5 {[%emt 0:07:45]} Nxe5 {[%emt 0:01:06]} 19. Rd1 {[%emt 0:07:09]} Nd3 {[%emt 0:16:34]} 20. b3 {[%emt 0:06:55]} Bd4 {[%emt 0:01:42]} 21. Ne2 {[%emt 0:05:37]} Bxf2+ {[%emt 0:05:08]} 22. Kf1 {[%emt 0:02:17]} Qb5 {[%emt 0:17:40]} 23. Bc3 {[%emt 0:06:24]} Be3 {[%emt 0:04:21]} 24. Rab1 {[%emt 0:03:09]} Nf2 {[%emt 0:02:15]} 25. Re1 {[%emt 0:01:28]} Ng4 {[%emt 0:00:22]} 26. Bh3 {[%emt 0:01:56]} Nf2 {[%emt 0:06:19]} 27. Bg2 {[%emt 0:00:35]} Qd7 {[%emt 0:03:53]} 28. e5 {[%emt 0:02:03]} Bd3 {[%emt 0:01:51]} 29. Qb2 {[%emt 0:00:29]} Qf5 {[%emt 0:00:15]} 30. Qa1 {[%emt 0:00:42]} Nd1+ {[%emt 0:00:19]} 31. Bf3 {[%emt 0:00:09]} Qxf3# {[%emt 0:00:05]} 0-1

[Event "FIDE World Cup G12-A 2024"]
[Site "Batumi"]
[Date "2024.06.26"]
[Round "4.11"]
[White "Lipartia, Nino"]
[Black "Ali, Maha"]
[Result "1-0"]
[ECO "B12"]
[WhiteElo "1437"]
[BlackElo "1601"]
[Annotator "NA RC"]
[PlyCount "53"]
[EventDate "2024.06.23"]
[EventType "swiss"]
[EventCountry "GEO"]
[SourceTitle "playchess.com"]
[Source "ChessBase"]
[SourceQuality "1"]
[TimeControl "5400+30"]

1. e4 {[%emt 0:00:01]} c6 {[%emt 0:00:06]} 2. d4 {[%emt 0:00:02]} d5 {[%emt 0:00:07]} 3. e5 {[%emt 0:00:01]} Bf5 {[%emt 0:00:07]} 4. Nf3 {[%emt 0:00:04]} e6 {[%emt 0:00:08]} 5. Be2 {[%emt 0:00:02]} c5 {[%emt 0:00:27]} 6. O-O {[%emt 0:00:17]} Nc6 {[%emt 0:00:16]} 7. c4 {[%emt 0:00:50]} cxd4 {[%emt 0:02:28]} 8. Nxd4 {[%emt 0:00:56]} Bxb1 {[%emt 0:03:32]} 9. Rxb1 {[%emt 0:04:33]} Nge7 {[%emt 0:01:33]} 10. cxd5 {[%emt 0:01:10]} Qxd5 {[%emt 0:01:32]} 11. Nb5 {[%emt 0:08:15]} Qxd1 {[%emt 0:08:26]} 12. Rxd1 {[%emt 0:00:11]} Nd5 {[%emt 0:01:20]} 13. Rxd5 {[%emt 0:02:16]} exd5 {[%emt 0:00:19]} 14. Nc7+ {[%emt 0:00:07]} Kd7 {[%emt 0:00:16]} 15. Nxa8 {[%emt 0:00:33]} Kc8 {[%emt 0:01:12]} 16. Bf4 {[%emt 0:04:29]} Kb8 {[%emt 0:06:11]} 17. e6+ {[%emt 0:00:27]} Kxa8 {[%emt 0:00:07]} 18. exf7 {[%emt 0:00:33]} Bc5 {[%emt 0:01:10]} 19. Rd1 {[%emt 0:02:08]} d4 {[%emt 0:03:28]} 20. Bb5 {[%emt 0:05:21]} Rf8 {[%emt 0:02:07]} 21. Bc4 {[%emt 0:04:52]} Rd8 {[%emt 0:07:18]} 22. Re1 {[%emt 0:08:44]} d3 {[%emt 0:04:50]} 23. Re8 {[%emt 0:02:37]} d2 {[%emt 0:00:36]} 24. Bxd2 {[%emt 0:00:44]} a6 {[%emt 0:02:26]} 25. Bg5 {[%emt 0:02:31]} Rb8 {[%emt 0:02:06]} 26. Bf4 {[%emt 0:00:20]} Rd8 {[%emt 0:00:39]} 27. Bc7 {[%emt 0:00:12]} 1-0

[Event "FIDE World Cup G12-A 2024"]
[Site "Batumi"]
[Date "2024.06.27"]
[Round "5.1"]
[White "Xue, Tianhao"]
[Black "Zavivaeva, Kristina"]
[Result "0-1"]
[ECO "B12"]
[WhiteElo "1754"]
[BlackElo "1666"]
[Annotator "NA RC"]
[PlyCount "116"]
[EventDate "2024.06.23"]
[EventType "swiss"]
[EventCountry "GEO"]
[SourceTitle "playchess.com"]
[Source "ChessBase"]
[SourceQuality "1"]
[TimeControl "5400+30"]

1. e4 {[%emt 0:00:02]} c6 {[%emt 0:00:05]} 2. d4 {[%emt 0:00:06]} d5 {[%emt 0:00:04]} 3. e5 {[%emt 0:00:04]} Bf5 {[%emt 0:00:07]} 4. h4 {[%emt 0:00:05]} h6 {[%emt 0:00:06]} 5. g4 {[%emt 0:00:11]} Bd7 {[%emt 0:00:04]} 6. Be3 {[%emt 0:03:32]} Qb6 {[%emt 0:03:04]} 7. b3 {[%emt 0:03:44]} e6 {[%emt 0:00:49]} 8. Nf3 {[%emt 0:10:58]} c5 {[%emt 0:02:29]} 9. c3 {[%emt 0:15:11]} Nc6 {[%emt 0:01:28]} 10. Be2 {[%emt 0:04:10]} cxd4 {[%emt 0:01:09]} 11. Bxd4 {[%emt 0:00:39]} Nxd4 {[%emt 0:01:06]} 12. Nxd4 {[%emt 0:00:50]} Bc5 {[%emt 0:02:23]} 13. Qd3 {[%emt 0:02:17]} Ne7 {[%emt 0:02:05]} 14. Nd2 {[%emt 0:03:51]} Nc6 {[%emt 0:05:53]} 15. N2f3 {[%emt 0:03:21]} Bxd4 {[%emt 0:01:11]} 16. cxd4 {[%emt 0:01:41]} Nb4 {[%emt 0:01:46]} 17. Qd2 {[%emt 0:02:37]} Rc8 {[%emt 0:03:36]} 18. O-O {[%emt 0:18:16]} Rc2 {[%emt 0:01:15]} 19. Qe3 {[%emt 0:00:09]} Rxa2 {[%emt 0:02:17]} 20. Rxa2 {[%emt 0:00:05]} Nxa2 {[%emt 0:00:06]} 21. g5 {[%emt 0:00:11]} Nb4 {[%emt 0:07:13]} 22. gxh6 {[%emt 0:05:32]} Rxh6 {[%emt 0:00:23]} 23. Kh1 {[%emt 0:04:28]} Qd8 {[%emt 0:04:01]} 24. Rg1 {[%emt 0:02:14]} Kf8 {[%emt 0:01:19]} 25. Qf4 {[%emt 0:03:14]} Nc6 {[%emt 0:00:37]} 26. Ng5 {[%emt 0:02:41]} Be8 {[%emt 0:04:42]} 27. Bd3 {[%emt 0:02:00]} Kg8 {[%emt 0:03:50]} 28. Nf3 {[%emt 0:02:16]} Kh8 {[%emt 0:03:14]} 29. Qg4 {[%emt 0:04:57]} g6 {[%emt 0:00:32]} 30. Qf4 {[%emt 0:01:00]} Kg7 {[%emt 0:02:06]} 31. Rg3 {[%emt 0:01:18]} Qe7 {[%emt 0:01:55]} 32. Kg2 {[%emt 0:00:36]} Nb4 {[%emt 0:03:07]} 33. Be2 {[%emt 0:01:05]} b5 {[%emt 0:01:20]} 34. Ng5 {[%emt 0:00:52]} a5 {[%emt 0:00:41]} 35. h5 {[%emt 0:00:47]} a4 {[%emt 0:00:41]} 36. bxa4 {[%emt 0:00:28]} bxa4 {[%emt 0:00:04]} 37. hxg6 {[%emt 0:00:22]} fxg6 {[%emt 0:02:59]} 38. Bg4 {[%emt 0:00:44]} Rh4 {[%emt 0:00:42]} 39. Rf3 {[%emt 0:00:58]} Bd7 {[%emt 0:08:30]} 40. Kg3 {[%emt 0:01:01]} Rh8 {[%emt 0:00:43]} 41. Qf6+ {[%emt 0:01:21]} Qxf6 {[%emt 0:00:16]} 42. exf6+ {[%emt 0:00:01]} Kf8 {[%emt 0:00:22]} 43. Bxe6 {[%emt 0:00:21]} Bb5 {[%emt 0:03:02]} 44. f7 {[%emt 0:01:17]} Rh5 {[%emt 0:01:31]} 45. Nh3 {[%emt 0:00:43]} Nd3 {[%emt 0:02:52]} 46. Bg4 {[%emt 0:00:32]} Rxh3+ {[%emt 0:05:12]} 47. Bxh3 {[%emt 0:00:25]} a3 {[%emt 0:00:08]} 48. Be6 {[%emt 0:00:29]} a2 {[%emt 0:00:21]} 49. Rf6 {[%emt 0:00:45]} a1=Q {[%emt 0:21:34]} 50. Kh2 {[%emt 0:00:19]} Qxd4 {[%emt 0:00:00]} 51. Rxg6 {[%emt 0:00:08]} Qxf2+ {[%emt 0:00:00]} 52. Kh1 {[%emt 0:00:19]} Qf3+ {[%emt 0:00:00]} 53. Kh2 {[%emt 0:00:21]} Qh5+ {[%emt 0:00:00]} 54. Bh3 {[%emt 0:00:49]} Qxg6 {[%emt 0:00:00]} 55. Bg2 {[%emt 0:00:34]} Nf4 {[%emt 0:00:00]} 56. Bf3 {[%emt 0:00:28]} Ne2 {[%emt 0:00:00]} 57. Bxe2 {[%emt 0:00:39]} Bxe2 {[%emt 0:00:00]} 58. Kh3 {[%emt 0:00:09]} Bf3 {[%emt 0:04:30]} 0-1

[Event "FIDE World Cup G12-A 2024"]
[Site "Batumi"]
[Date "2024.06.27"]
[Round "5.2"]
[White "Mirzaliyeva, Leyla"]
[Black "Kaminska, Zuzanna"]
[Result "1/2-1/2"]
[ECO "C77"]
[WhiteElo "1548"]
[BlackElo "1848"]
[Annotator "NA RC"]
[PlyCount "24"]
[EventDate "2024.06.23"]
[EventType "swiss"]
[EventCountry "GEO"]
[SourceTitle "playchess.com"]
[Source "ChessBase"]
[SourceQuality "1"]
[TimeControl "5400+30"]

1. e4 {[%emt 0:00:07]} e5 {[%emt 0:00:06]} 2. Nf3 {[%emt 0:00:06]} Nc6 {[%emt 0:00:09]} 3. Bb5 {[%emt 0:00:09]} a6 {[%emt 0:00:09]} 4. Ba4 {[%emt 0:00:11]} Nf6 {[%emt 0:00:23]} 5. d4 {[%emt 0:00:19]} exd4 {[%emt 0:03:04]} 6. e5 {[%emt 0:00:38]} Ne4 {[%emt 0:01:01]} 7. Nxd4 {[%emt 0:01:21]} Nxf2 {[%emt 0:20:42]} 8. Kxf2 {[%emt 0:18:16]} Qh4+ {[%emt 0:01:02]} 9. Ke3 {[%emt 0:00:36] [#]} Nxe5 $15 {[%emt 0:07:56]} (9... b5 $1 $17 10. Bb3 (10. Nxc6 $2 dxc6 11. Qd4 Qxd4+ 12. Kxd4 bxa4 $19) 10... Bc5 (10... Nxe5 11. Nf3 $14)) 10. Qe1 {[%emt 0:05:15]} Qg5+ {[%emt 0:14:55]} 11. Kf2 {[%emt 0:02:52]} Qh4+ {[%emt 0:01:49]} 12. Ke3 {[%emt 0:00:28]} Qg5+ {[%emt 0:03:36]} 1/2-1/2

[Event "FIDE World Cup G12-A 2024"]
[Site "Batumi"]
[Date "2024.06.27"]
[Round "5.3"]
[White "Venskaya, Nika"]
[Black "Qiu, Laurie"]
[Result "1-0"]
[ECO "D39"]
[WhiteElo "1774"]
[BlackElo "2068"]
[Annotator "RC"]
[PlyCount "53"]
[EventDate "2024.06.23"]
[EventType "swiss"]
[EventCountry "GEO"]
[SourceTitle "playchess.com"]
[Source "ChessBase"]
[SourceQuality "1"]
[TimeControl "5400+30"]

1. d4 {[%emt 0:00:04]} d5 {[%emt 0:00:08]} 2. c4 {[%emt 0:00:37]} e6 {[%emt 0:00:07]} 3. Nf3 {[%emt 0:00:43]} Nf6 {[%emt 0:00:10]} 4. Nc3 {[%emt 0:00:21]} Bb4 {[%emt 0:01:09]} 5. Bg5 {[%emt 0:04:07]} h6 {[%emt 0:00:35]} 6. Bxf6 {[%emt 0:07:50]} Qxf6 {[%emt 0:00:14]} 7. a3 {[%emt 0:03:12]} Bxc3+ {[%emt 0:02:32]} 8. bxc3 {[%emt 0:00:01]} dxc4 {[%emt 0:04:24]} 9. Qa4+ {[%emt 0:08:35]} c6 {[%emt 0:04:02]} 10. Qxc4 {[%emt 0:00:11]} O-O {[%emt 0:01:19]} 11. e3 {[%emt 0:08:33]} Nd7 {[%emt 0:03:10]} 12. Be2 {[%emt 0:04:55]} Re8 {[%emt 0:05:40]} 13. O-O {[%emt 0:03:24]} e5 {[%emt 0:05:36]} 14. Qb3 {[%emt 0:05:56]} e4 {[%emt 0:05:23]} 15. Nd2 {[%emt 0:01:33]} Qg6 {[%emt 0:04:37]} 16. f3 {[%emt 0:08:00]} exf3 {[%emt 0:15:39]} 17. Rxf3 {[%emt 0:01:33]} Nf6 {[%emt 0:00:58]} 18. Rg3 {[%emt 0:05:48]} Qf5 {[%emt 0:43:47]} 19. Rf1 {[%emt 0:01:21]} Qe6 {[%emt 0:00:00]} 20. Qxe6 {[%emt 0:04:37]} Rxe6 {[%emt 0:00:00]} 21. Bc4 {[%emt 0:01:31]} Rd6 {[%emt 0:00:00]} 22. e4 {[%emt 0:01:18]} Ne8 {[%emt 0:00:00]} 23. Bxf7+ {[%emt 0:02:41]} Kf8 {[%emt 0:00:00]} 24. e5 {[%emt 0:01:51]} Rd8 {[%emt 0:00:00]} 25. Bxe8+ {[%emt 0:00:10]} Kxe8 {[%emt 0:00:00]} 26. Rxg7 {[%emt 0:00:07]} Be6 {[%emt 0:00:00]} 27. Ne4 {[%emt 0:01:03]} 1-0